[Event "Reykjavik Open 2022"]
[Site "Reykjavik"]
[Date "2022.04.06"]
[Round "1.55"]
[White "Burlacu, Bogdan"]
[Black "Carlsson, Gustav"]
[Result "1-0"]
[ECO "A08"]
[WhiteElo "2294"]
[BlackElo "1996"]
[Annotator "RC"]
[PlyCount "79"]
[EventDate "2022.04.06"]
[EventCountry "ISL"]
[SourceTitle "playchess.com"]
[Source "ChessBase"]
[SourceQuality "1"]
[TimeControl "40/5400+30:1800+30"]

1. e4 {[%emt 0:00:03]} e6 {[%emt 0:00:08]} 2. d3 {[%emt 0:00:46]} d5 {[%emt 0:00:21]} 3. Nd2 {[%emt 0:00:07]} Nf6 {[%emt 0:00:59]} 4. Ngf3 {[%emt 0:00:23]} c5 {[%emt 0:01:51]} 5. g3 {[%emt 0:00:55]} Nc6 {[%emt 0:07:34]} 6. Bg2 {[%emt 0:01:04]} Be7 {[%emt 0:02:40]} 7. O-O {[%emt 0:00:32]} dxe4 {[%emt 0:03:33]} 8. dxe4 {[%emt 0:00:35]} e5 {[%emt 0:00:50]} 9. c3 {[%emt 0:02:18]} O-O {[%emt 0:00:11]} 10. Qc2 {[%emt 0:01:47]} Qc7 {[%emt 0:01:47]} 11. a4 {[%emt 0:03:15]} Na5 {[%emt 0:05:52]} 12. b3 {[%emt 0:15:16]} b6 {[%emt 0:16:02]} 13. Re1 {[%emt 0:12:13]} Ba6 {[%emt 0:05:22]} 14. Rb1 {[%emt 0:17:09]} Rad8 {[%emt 0:04:30]} 15. Bf1 {[%emt 0:00:54]} Bxf1 {[%emt 0:01:45]} 16. Nxf1 {[%emt 0:00:16]} Rd7 {[%emt 0:05:02]} 17. Ne3 {[%emt 0:09:30]} g6 {[%emt 0:11:29]} 18. Nd2 {[%emt 0:12:36]} a6 {[%emt 0:03:39]} 19. Nec4 {[%emt 0:08:10]} Nxc4 {[%emt 0:00:59]} 20. bxc4 {[%emt 0:00:48]} h5 {[%emt 0:10:26]} 21. Nf1 {[%emt 0:01:03]} h4 {[%emt 0:00:42]} 22. Ne3 {[%emt 0:01:15]} hxg3 {[%emt 0:00:33]} 23. hxg3 {[%emt 0:00:02]} Kg7 {[%emt 0:00:38]} 24. Kg2 {[%emt 0:00:51]} Rh8 {[%emt 0:01:17]} 25. Bd2 {[%emt 0:03:20]} Rd6 {[%emt 0:06:44]} 26. Rh1 {[%emt 0:01:30]} Rxh1 {[%emt 0:01:28]} 27. Rxh1 {[%emt 0:00:04]} Qd7 {[%emt 0:00:28]} 28. Nd5 {[%emt 0:00:51]} Nxd5 {[%emt 0:00:29]} 29. cxd5 {[%emt 0:00:08]} b5 {[%emt 0:00:24]} 30. axb5 {[%emt 0:00:28]} axb5 {[%emt 0:00:43]} 31. Be3 {[%emt 0:03:01]} Ra6 {[%emt 0:00:43]} 32. Qb2 {[%emt 0:01:01]} b4 {[%emt 0:01:16]} 33. cxb4 {[%emt 0:00:10]} cxb4 {[%emt 0:02:00]} 34. Qxe5+ {[%emt 0:00:25]} f6 {[%emt 0:00:57]} 35. Qb8 {[%emt 0:00:16]} Qd8 {[%emt 0:00:47]} 36. Qb7 {[%emt 0:00:17]} Ra5 {[%emt 0:01:12]} 37. Rc1 {[%emt 0:01:47]} Kf7 {[%emt 0:01:55]} 38. Rc8 {[%emt 0:01:02]} Qd6 {[%emt 0:00:34]} 39. Bf4 {[%emt 0:00:10]} Qa6 {[%emt 0:00:20]} 40. Qd7 {[%emt 0:00:00]} 1-0

[Event "Reykjavik Open 2022"]
[Site "Reykjavik"]
[Date "2022.04.06"]
[Round "1.56"]
[White "Jaivardhan Raj"]
[Black "Doluhanova, Evgeniya"]
[Result "0-1"]
[ECO "C45"]
[WhiteElo "2006"]
[BlackElo "2255"]
[Annotator "RC"]
[PlyCount "126"]
[EventDate "2022.04.06"]
[EventCountry "ISL"]
[SourceTitle "playchess.com"]
[Source "ChessBase"]
[SourceQuality "1"]
[TimeControl "40/5400+30:1800+30"]

1. e4 {[%emt 0:00:04]} e5 {[%emt 0:01:15]} 2. Nf3 {[%emt 0:00:07]} Nc6 {[%emt 0:00:05]} 3. d4 {[%emt 0:00:10]} exd4 {[%emt 0:00:08]} 4. Nxd4 {[%emt 0:00:09]} Nxd4 {[%emt 0:01:35]} 5. Qxd4 {[%emt 0:00:15]} Qf6 {[%emt 0:00:19]} 6. e5 {[%emt 0:00:10]} Qb6 {[%emt 0:00:08]} 7. Qxb6 {[%emt 0:00:06]} axb6 {[%emt 0:00:04]} 8. Nc3 {[%emt 0:00:09]} Bb4 {[%emt 0:00:49]} 9. Bd2 {[%emt 0:00:13]} Ne7 {[%emt 0:01:56]} 10. a3 {[%emt 0:11:46]} O-O {[%emt 0:22:01]} 11. O-O-O {[%emt 0:00:00]} Bc5 {[%emt 0:07:31]} 12. Ne4 {[%emt 0:02:18]} Ng6 {[%emt 0:01:48]} 13. f4 {[%emt 0:01:38]} Be7 {[%emt 0:02:51]} 14. g3 {[%emt 0:04:20]} f5 {[%emt 0:15:33]} 15. Nc3 {[%emt 0:05:59]} c6 {[%emt 0:02:17]} 16. Be3 {[%emt 0:07:21]} b5 {[%emt 0:00:30]} 17. Kb1 {[%emt 0:04:15]} Re8 {[%emt 0:07:16]} 18. Bh3 {[%emt 0:02:34]} b4 {[%emt 0:08:58]} 19. axb4 {[%emt 0:01:32]} Bxb4 {[%emt 0:00:05]} 20. Na2 {[%emt 0:01:37]} Bf8 {[%emt 0:00:27]} 21. Bxf5 {[%emt 0:02:09]} Nxe5 {[%emt 0:00:39]} 22. Bc1 {[%emt 0:09:04]} Nc4 {[%emt 0:05:09]} 23. Rhe1 {[%emt 0:13:07]} Rxe1 {[%emt 0:02:53]} 24. Rxe1 {[%emt 0:00:02]} g6 {[%emt 0:01:23]} 25. Bh3 {[%emt 0:00:53]} d5 {[%emt 0:01:54]} 26. Re8 {[%emt 0:08:35]} Nd6 {[%emt 0:01:06]} 27. Rd8 {[%emt 0:04:55]} Kf7 {[%emt 0:01:34]} 28. Bxc8 {[%emt 0:03:34]} Rxc8 {[%emt 0:00:20]} 29. Rxc8 {[%emt 0:00:55]} Nxc8 {[%emt 0:00:04]} 30. Be3 {[%emt 0:01:23]} Ke6 {[%emt 0:01:02]} 31. g4 {[%emt 0:01:09]} c5 {[%emt 0:02:26]} 32. c3 {[%emt 0:00:50]} Bd6 {[%emt 0:00:09]} 33. h3 {[%emt 0:00:51]} Nb6 {[%emt 0:03:20]} 34. b3 {[%emt 0:00:52]} Nd7 {[%emt 0:00:58]} 35. Nc1 {[%emt 0:01:41]} h5 {[%emt 0:00:37]} 36. Kc2 {[%emt 0:05:35]} hxg4 {[%emt 0:01:22]} 37. hxg4 {[%emt 0:00:03]} Nf6 {[%emt 0:00:21]} 38. f5+ {[%emt 0:04:29]} gxf5 {[%emt 0:00:19]} 39. gxf5+ {[%emt 0:00:07]} Kxf5 {[%emt 0:00:05]} 40. Kd3 {[%emt 0:00:00]} Ng4 {[%emt 0:00:00]} 41. Ne2 {[%emt 0:04:33]} b5 {[%emt 0:03:01]} 42. b4 {[%emt 0:02:37]} Ne5+ {[%emt 0:04:52]} 43. Kc2 {[%emt 0:09:43]} cxb4 {[%emt 0:00:18]} 44. Nd4+ {[%emt 0:10:03]} Ke4 {[%emt 0:00:08]} 45. Bf2 {[%emt 0:00:19]} Bc5 {[%emt 0:01:55]} 46. Nxb5 {[%emt 0:02:49]} Bxf2 {[%emt 0:00:19]} 47. Nd6+ {[%emt 0:00:28]} Kf3 {[%emt 0:00:46]} 48. cxb4 {[%emt 0:02:02]} Ke2 {[%emt 0:01:20]} 49. b5 {[%emt 0:03:17]} d4 {[%emt 0:01:19]} 50. Ne4 {[%emt 0:01:16]} d3+ {[%emt 0:00:18]} 51. Kc3 {[%emt 0:00:26]} Be1+ {[%emt 0:06:00]} 52. Kd4 {[%emt 0:00:49]} Nf3+ {[%emt 0:00:34]} 53. Kd5 {[%emt 0:01:19]} Ng5 {[%emt 0:01:24]} 54. b6 {[%emt 0:01:43]} Nxe4 {[%emt 0:00:13]} 55. b7 {[%emt 0:00:12]} Bg3 {[%emt 0:00:15]} 56. Kxe4 {[%emt 0:00:20]} d2 {[%emt 0:00:05]} 57. b8=Q {[%emt 0:00:31]} Bxb8 {[%emt 0:00:04]} 58. Kf5 {[%emt 0:00:06]} d1=Q {[%emt 0:00:20]} 59. Ke6 {[%emt 0:00:08]} Qd3 {[%emt 0:00:26]} 60. Kf6 {[%emt 0:00:10]} Qd5 {[%emt 0:00:17]} 61. Ke7 {[%emt 0:00:15]} Qf5 {[%emt 0:04:08]} 62. Kd8 {[%emt 0:00:20]} Qf7 {[%emt 0:00:16]} 63. Kc8 {[%emt 0:00:12]} Qc7# {[%emt 0:00:06]} 0-1

[Event "Reykjavik Open 2022"]
[Site "Reykjavik"]
[Date "2022.04.06"]
[Round "1.57"]
[White "Thorhallsson, Simon"]
[Black "George Samir, David"]
[Result "0-1"]
[ECO "C55"]
[WhiteElo "2245"]
[BlackElo "2032"]
[Annotator "RC"]
[PlyCount "102"]
[EventDate "2022.04.06"]
[EventCountry "ISL"]
[SourceTitle "playchess.com"]
[Source "ChessBase"]
[SourceQuality "1"]
[TimeControl "40/5400+30:1800+30"]

1. e4 {[%emt 0:00:02]} e5 {[%emt 0:00:12]} 2. Nf3 {[%emt 0:00:05]} Nc6 {[%emt 0:00:11]} 3. Bc4 {[%emt 0:00:24]} Nf6 {[%emt 0:00:12]} 4. d3 {[%emt 0:00:11]} h6 {[%emt 0:00:09]} 5. c3 {[%emt 0:00:39]} d6 {[%emt 0:00:14]} 6. a4 {[%emt 0:03:23]} g5 {[%emt 0:03:22]} 7. Qb3 {[%emt 0:05:43]} Qd7 {[%emt 0:03:45]} 8. a5 {[%emt 0:01:21]} a6 {[%emt 0:01:00]} 9. Nbd2 {[%emt 0:18:26]} Nd8 {[%emt 0:04:09]} 10. Nf1 {[%emt 0:02:53]} Ne6 {[%emt 0:05:42]} 11. Ne3 {[%emt 0:04:17]} Nf4 {[%emt 0:01:47]} 12. g3 {[%emt 0:12:02]} Ng6 {[%emt 0:01:46]} 13. h4 {[%emt 0:03:38]} g4 {[%emt 0:03:44]} 14. Nh2 {[%emt 0:02:22]} h5 {[%emt 0:00:10]} 15. Nhf1 {[%emt 0:02:22]} Bh6 {[%emt 0:02:19]} 16. Nd5 {[%emt 0:08:10]} Nxd5 {[%emt 0:01:10]} 17. Bxd5 {[%emt 0:00:28]} Bxc1 {[%emt 0:02:29]} 18. Rxc1 {[%emt 0:00:09]} c6 {[%emt 0:01:12]} 19. Bc4 {[%emt 0:00:20]} f5 {[%emt 0:00:35]} 20. Nd2 {[%emt 0:03:47]} f4 {[%emt 0:02:59]} 21. Ke2 {[%emt 0:04:25]} Kf8 {[%emt 0:04:46]} 22. Rcf1 {[%emt 0:01:13]} Kg7 {[%emt 0:00:16]} 23. Kd1 {[%emt 0:01:08]} Rd8 {[%emt 0:00:48]} 24. Qc2 {[%emt 0:03:41]} d5 {[%emt 0:01:38]} 25. Ba2 {[%emt 0:03:24]} Qc7 {[%emt 0:04:26]} 26. b4 {[%emt 0:03:33]} b6 {[%emt 0:00:15]} 27. axb6 {[%emt 0:02:43]} Qxb6 {[%emt 0:02:40]} 28. exd5 {[%emt 0:01:49]} cxd5 {[%emt 0:00:19]} 29. Nb3 {[%emt 0:00:22]} d4 {[%emt 0:03:55]} 30. cxd4 {[%emt 0:05:28]} Bb7 {[%emt 0:03:19]} 31. Nc5 {[%emt 0:01:49]} Bxh1 {[%emt 0:00:55]} 32. Rxh1 {[%emt 0:00:38]} Rxd4 {[%emt 0:07:53]} 33. Qb3 {[%emt 0:02:08]} Qxb4 {[%emt 0:03:10]} 34. Ne6+ {[%emt 0:03:43]} Kh6 {[%emt 0:00:19]} 35. Nxd4 {[%emt 0:00:15]} Qxd4 {[%emt 0:00:10]} 36. Qd5 {[%emt 0:00:33]} Qa1+ {[%emt 0:00:35]} 37. Kc2 {[%emt 0:00:18]} Rc8+ {[%emt 0:00:18]} 38. Bc4 {[%emt 0:00:14]} Qa2+ {[%emt 0:00:55]} 39. Kc3 {[%emt 0:00:09]} Qxf2 {[%emt 0:00:56]} 40. Ra1 {[%emt 0:00:00]} fxg3 {[%emt 0:00:00]} 41. Rxa6 {[%emt 0:01:19]} Qd4+ {[%emt 0:01:48]} 42. Kd2 {[%emt 0:01:01]} Qxd5 {[%emt 0:06:39]} 43. Bxd5 {[%emt 0:00:30]} Kg7 {[%emt 0:00:14]} 44. Ra7+ {[%emt 0:01:16]} Kh8 {[%emt 0:02:31]} 45. Be4 {[%emt 0:00:14]} Rf8 {[%emt 0:03:32]} 46. Ra1 {[%emt 0:03:07]} Nxh4 {[%emt 0:02:14]} 47. Rh1 {[%emt 0:01:03]} Nf3+ {[%emt 0:02:10]} 48. Bxf3 {[%emt 0:01:37]} gxf3 {[%emt 0:00:08]} 49. Rxh5+ {[%emt 0:00:13]} Kg7 {[%emt 0:00:07]} 50. Rg5+ {[%emt 0:00:27]} Kh6 {[%emt 0:00:10]} 51. Rxg3 {[%emt 0:00:05]} f2 {[%emt 0:00:12]} 0-1

[Event "Reykjavik Open 2022"]
[Site "Reykjavik"]
[Date "2022.04.07"]
[Round "2.1"]
[White "Korley, Kassa"]
[Black "Idani, Pouya"]
[Result "1/2-1/2"]
[ECO "E64"]
[WhiteElo "2399"]
[BlackElo "2621"]
[Annotator "RC"]
[PlyCount "62"]
[EventDate "2022.04.06"]
[EventCountry "ISL"]
[SourceTitle "playchess.com"]
[Source "ChessBase"]
[SourceQuality "1"]
[TimeControl "40/5400+30:1800+30"]

1. d4 {[%emt 0:00:02]} Nf6 {[%emt 0:00:08]} 2. c4 {[%emt 0:00:04]} g6 {[%emt 0:00:11]} 3. g3 {[%emt 0:00:17]} Bg7 {[%emt 0:00:06]} 4. Bg2 {[%emt 0:00:04]} O-O {[%emt 0:00:07]} 5. Nc3 {[%emt 0:00:23]} d6 {[%emt 0:00:17]} 6. Nf3 {[%emt 0:00:06]} c5 {[%emt 0:00:04]} 7. d5 {[%emt 0:06:43]} e6 {[%emt 0:00:14]} 8. O-O {[%emt 0:00:09]} Re8 {[%emt 0:02:42]} 9. dxe6 {[%emt 0:05:19]} Bxe6 {[%emt 0:00:06]} 10. Ng5 {[%emt 0:03:01]} Bxc4 {[%emt 0:00:08]} 11. Bxb7 {[%emt 0:01:53]} Nbd7 {[%emt 0:00:18]} 12. Bxa8 {[%emt 0:05:10]} Qxa8 {[%emt 0:00:05]} 13. Qxd6 {[%emt 0:07:14]} h6 {[%emt 0:01:23]} 14. Nf3 {[%emt 0:02:33]} Bxe2 {[%emt 0:26:46]} 15. Nxe2 {[%emt 0:01:59]} Qxf3 {[%emt 0:00:07]} 16. Nc3 {[%emt 0:04:43]} Qb7 {[%emt 0:01:12]} 17. Qd1 {[%emt 0:06:14]} Ne5 {[%emt 0:03:05]} 18. f4 {[%emt 0:09:50]} Nc4 {[%emt 0:20:00]} 19. Qf3 {[%emt 0:17:54]} Qd7 {[%emt 0:02:10]} 20. Rd1 {[%emt 0:01:18]} Qf5 {[%emt 0:04:48]} 21. Qd3 {[%emt 0:02:18]} Ng4 {[%emt 0:06:12]} 22. Qxf5 {[%emt 0:04:20]} gxf5 {[%emt 0:00:10]} 23. h3 {[%emt 0:04:29]} Bd4+ {[%emt 0:01:16]} 24. Kg2 {[%emt 0:00:23]} Nge3+ {[%emt 0:02:05]} 25. Bxe3 {[%emt 0:00:06]} Nxe3+ {[%emt 0:00:03]} 26. Kf3 {[%emt 0:00:24]} Nxd1 {[%emt 0:00:08]} 27. Rxd1 {[%emt 0:00:09]} Re3+ {[%emt 0:01:27]} 28. Kg2 {[%emt 0:00:05]} a5 {[%emt 0:08:45]} 29. Rc1 {[%emt 0:04:19]} h5 {[%emt 0:08:27]} 30. Rc2 {[%emt 0:02:54]} h4 {[%emt 0:03:08]} 31. gxh4 {[%emt 0:00:44]} Bxc3 {[%emt 0:01:06]} 1/2-1/2

[Event "Reykjavik Open 2022"]
[Site "Reykjavik"]
[Date "2022.04.07"]
[Round "2.2"]
[White "Gukesh D"]
[Black "Fantinel, Thibault"]
[Result "1-0"]
[ECO "E94"]
[WhiteElo "2614"]
[BlackElo "2376"]
[Annotator "ChessBase"]
[PlyCount "71"]
[EventDate "2022.04.06"]
[EventCountry "ISL"]
[SourceTitle "playchess.com"]
[Source "ChessBase"]
[SourceQuality "1"]
[TimeControl "40/5400+30:1800+30"]

1. d4 {[%emt 0:02:09]} Nf6 {[%emt 0:00:39]} 2. Nf3 {[%emt 0:02:06]} g6 {[%emt 0:01:34]} 3. c4 {[%emt 0:02:03]} Bg7 {[%emt 0:00:13]} 4. Nc3 {[%emt 0:00:12]} O-O {[%emt 0:00:37]} 5. e4 {[%emt 0:00:17]} d6 {[%emt 0:00:14]} 6. Be2 {[%emt 0:00:29]} e5 {[%emt 0:01:20]} 7. O-O {[%emt 0:00:11]} Bg4 {[%emt 0:00:37]} 8. d5 {[%emt 0:02:49]} a5 {[%emt 0:00:48]} 9. Be3 {[%emt 0:02:11]} Na6 {[%emt 0:00:59]} 10. Nd2 {[%emt 0:00:17]} Bd7 {[%emt 0:01:02]} 11. a3 {[%emt 0:04:21]} h5 {[%emt 0:01:01]} 12. f3 {[%emt 0:14:19]} Nh7 {[%emt 0:03:49]} 13. Rb1 {[%emt 0:03:20]} f5 {[%emt 0:03:51]} 14. b4 {[%emt 0:14:39]} axb4 {[%emt 0:08:55]} 15. axb4 {[%emt 0:00:02]} b6 {[%emt 0:01:08]} 16. Qb3 {[%emt 0:09:38]} Bf6 {[%emt 0:04:25]} 17. c5 {[%emt 0:09:27]} bxc5 {[%emt 0:08:23]} 18. Bxa6 {[%emt 0:00:13]} Rxa6 {[%emt 0:10:29]} 19. bxc5 {[%emt 0:00:20]} Bg5 {[%emt 0:00:36]} 20. Bxg5 {[%emt 0:02:04]} Nxg5 {[%emt 0:01:41]} 21. c6 {[%emt 0:03:52]} Bc8 {[%emt 0:01:33]} 22. Qb8 {[%emt 0:10:54]} h4 {[%emt 0:08:34]} 23. exf5 {[%emt 0:04:53]} gxf5 {[%emt 0:02:57]} 24. f4 {[%emt 0:01:11]} exf4 {[%emt 0:02:21]} 25. Qb4 {[%emt 0:01:59]} h3 {[%emt 0:04:30]} 26. Qxf4 {[%emt 0:01:42]} hxg2 {[%emt 0:01:40]} 27. Kxg2 {[%emt 0:00:07]} Qf6 {[%emt 0:01:19]} 28. Kh1 {[%emt 0:02:19]} Nh7 {[%emt 0:08:07]} 29. Rg1+ {[%emt 0:00:22]} Kh8 {[%emt 0:00:31]} 30. Nb5 {[%emt 0:00:30]} Qf7 {[%emt 0:00:48]} 31. Qd4+ {[%emt 0:02:42]} Nf6 {[%emt 0:00:05]} 32. Nc3 {[%emt 0:01:23]} Ra5 {[%emt 0:03:25]} 33. Rb4 {[%emt 0:01:02]} Rc5 {[%emt 0:02:56]} 34. Nf3 {[%emt 0:00:50]} Qh5 {[%emt 0:04:23]} 35. Ng5 {[%emt 0:01:30]} f4 {[%emt 0:00:28]} 36. Rb8 {[%emt 0:00:04]} 1-0

[Event "Reykjavik Open 2022"]
[Site "Reykjavik"]
[Date "2022.04.07"]
[Round "2.3"]
[White "Sukandar, Irine Kharisma"]
[Black "Niemann, Hans Moke"]
[Result "0-1"]
[ECO "B23"]
[WhiteElo "2378"]
[BlackElo "2642"]
[Annotator "TA"]
[PlyCount "74"]
[EventDate "2022.04.06"]
[EventCountry "ISL"]
[SourceTitle "playchess.com"]
[Source "ChessBase"]
[SourceQuality "1"]
[TimeControl "40/5400+30:1800+30"]

{[%evp 39,74,-23,0,0,116,129,246,231,495,462,445,181,230,235,227,224,227,257,244,166,171,177,599,-96,-83,-1382,-1346,-1750,-1741,-1531,-1549,-1265,-1017,-29996,-29997,-29998,-29999]} 1. e4 {[%emt 0:00:04]} c5 {[%emt 0:03:15]} 2. Nc3 {[%emt 0:00:25]} Nc6 {[%emt 0:02:51]} 3. Bb5 {[%emt 0:00:39]} g6 {[%emt 0:07:30]} 4. Bxc6 {[%emt 0:00:37]} bxc6 {[%emt 0:07:49]} 5. d3 {[%emt 0:01:35]} Bg7 {[%emt 0:00:45]} 6. Be3 {[%emt 0:04:22]} Rb8 {[%emt 0:03:43]} 7. Nge2 {[%emt 0:03:58]} d5 {[%emt 0:06:48]} 8. exd5 {[%emt 0:07:44]} cxd5 {[%emt 0:00:14]} 9. Bxc5 {[%emt 0:02:05]} d4 {[%emt 0:02:46]} 10. Ne4 {[%emt 0:02:30]} f5 {[%emt 0:01:18]} 11. N4g3 {[%emt 0:14:42]} Qd5 {[%emt 0:00:14]} 12. b4 {[%emt 0:00:49]} Qxg2 {[%emt 0:01:31]} 13. Qd2 {[%emt 0:19:55]} Qd5 {[%emt 0:05:00]} 14. Bxa7 {[%emt 0:03:16]} Ra8 {[%emt 0:02:35]} 15. Bc5 {[%emt 0:00:10]} e5 {[%emt 0:01:13]} 16. c4 {[%emt 0:03:13]} Qc6 {[%emt 0:03:21]} 17. f4 {[%emt 0:05:54]} Bh6 {[%emt 0:00:18]} 18. Rf1 {[%emt 0:00:44]} Nf6 {[%emt 0:07:21]} 19. Qb2 {[%emt 0:04:04]} Rb8 {[%emt 0:00:42]} 20. Ba7 {[%emt 0:04:11]} ({Reject} 20. fxe5 Qxc5 $1 21. exf6 (21. bxc5 Rxb2 22. exf6 Bd2+ 23. Kf2 Be3+ 24. Kg2 Kf7 $17) 21... Rxb4 22. Qxd4 Qxd4 $17) 20... Rb7 {[%emt 0:01:54]} 21. fxe5 {[%emt 0:07:49]} Ng4 {[%emt 0:04:03]} (21... Rxa7 $11 {remains equal.} 22. b5 (22. exf6 Qxf6 23. Qxd4 Qxd4 $11) (22. Nxd4 Qa6 $15) 22... Qa8 23. exf6 O-O) 22. Bxd4 $16 {[%emt 0:01:26]} Nxh2 {[%emt 0:00:44]} (22... O-O $16) 23. b5 $18 {[%emt 0:01:49]} Qg2 $2 {[%emt 0:03:08]} (23... Nf3+ {was necessary.} 24. Kf2 Nxd4) 24. Rf2 $18 {[%emt 0:01:07]} Qh3 {[%emt 0:00:01]} 25. c5 {[%emt 0:02:53]} (25. Qa3 $142 Bf8 26. c5) 25... Ng4 {[%emt 0:02:49] [#]} (25... O-O $142) 26. c6 $1 $18 {[%emt 0:00:14]} Re7 {[%emt 0:02:02] [#]} 27. b6 $1 {[%emt 0:02:17]} O-O {[%emt 0:00:14]} 28. Qb3+ {[%emt 0:02:49]} Be6 {[%emt 0:00:18]} 29. Qb4 {[%emt 0:00:06]} Ree8 {[%emt 0:01:41]} 30. b7 {[%emt 0:00:32]} Qh4 $2 {[%emt 0:01:07]} (30... f4 {is more resistant.} 31. Ne4 f3) 31. c7 $2 {[%emt 0:01:08]} ({Better is} 31. Qd6 $18 Ne3 32. Rc1) 31... Nxf2 $17 {[%emt 0:00:18]} 32. Kxf2 $2 {[%emt 0:00:58][%mdl 8192]} (32. Rd1 $17 Nxd1 33. b8=Q) 32... f4 $19 {[%emt 0:00:02]} 33. Rg1 {[%emt 0:00:54]} fxg3+ {[%emt 0:00:37]} 34. Ke1 {[%emt 0:00:03]} g2+ $1 {[%emt 0:01:28]} 35. Kd1 {[%emt 0:00:04]} Qg4 {[%emt 0:00:04]} 36. b8=Q {[%emt 0:01:34]} Rf1+ {[%emt 0:00:09]} (36... Rxb8 $2 37. cxb8=Q Rxb8 38. Qxb8+ $18) 37. Qe1 {[%emt 0:00:07]} Qxe2+ {[%emt 0:00:04]} 0-1

[Event "Reykjavik Open 2022"]
[Site "Reykjavik"]
[Date "2022.04.07"]
[Round "2.4"]
[White "Adhiban, B.."]
[Black "Rosen, Eric"]
[Result "1-0"]
[ECO "C10"]
[WhiteElo "2648"]
[BlackElo "2356"]
[Annotator "RC"]
[PlyCount "97"]
[EventDate "2022.04.06"]
[EventCountry "ISL"]
[SourceTitle "playchess.com"]
[Source "ChessBase"]
[SourceQuality "1"]
[TimeControl "40/5400+30:1800+30"]

1. e4 {[%emt 0:00:05]} c5 {[%emt 0:00:20]} 2. c3 {[%emt 0:02:59]} d5 {[%emt 0:00:40]} 3. exd5 {[%emt 0:00:28]} Qxd5 {[%emt 0:00:21]} 4. d4 {[%emt 0:00:12]} Nf6 {[%emt 0:00:14]} 5. Nf3 {[%emt 0:00:42]} e6 {[%emt 0:00:36]} 6. Na3 {[%emt 0:01:14]} Nc6 {[%emt 0:00:54]} 7. Be3 {[%emt 0:01:35]} cxd4 {[%emt 0:02:29]} 8. Nb5 {[%emt 0:00:34]} Qd8 {[%emt 0:00:56]} 9. Nbxd4 {[%emt 0:00:37]} Nxd4 {[%emt 0:00:52]} 10. Bxd4 {[%emt 0:00:27]} Qd5 {[%emt 0:11:41]} 11. Qb3 {[%emt 0:12:06]} Qe4+ {[%emt 0:09:36]} 12. Be2 {[%emt 0:14:03]} Be7 {[%emt 0:03:58]} 13. Nd2 {[%emt 0:03:47]} Qxg2 {[%emt 0:07:03]} 14. Bf3 {[%emt 0:00:24]} Qg5 {[%emt 0:02:12]} 15. Bxb7 {[%emt 0:00:56]} Bxb7 {[%emt 0:01:15]} 16. Qxb7 {[%emt 0:00:05]} Qd5 {[%emt 0:04:12]} 17. Qxd5 {[%emt 0:03:26]} Nxd5 {[%emt 0:09:45]} 18. Bxg7 {[%emt 0:00:09]} Rg8 {[%emt 0:00:03]} 19. Be5 {[%emt 0:00:56]} f6 {[%emt 0:05:37]} 20. Bg3 {[%emt 0:00:12]} Rc8 {[%emt 0:06:32]} 21. O-O-O {[%emt 0:03:08]} Rg4 {[%emt 0:03:45]} 22. Rhe1 {[%emt 0:02:40]} Kf7 {[%emt 0:01:25]} 23. Re4 {[%emt 0:09:23]} h5 {[%emt 0:07:04]} 24. f3 {[%emt 0:00:42]} Rxe4 {[%emt 0:01:23]} 25. fxe4 {[%emt 0:00:31]} Ne3 {[%emt 0:02:36]} 26. Re1 {[%emt 0:01:03]} Bc5 {[%emt 0:00:54]} 27. Re2 {[%emt 0:02:54]} a5 {[%emt 0:03:00]} 28. Bf2 {[%emt 0:12:32]} Ng2 {[%emt 0:02:38]} 29. Bg3 {[%emt 0:00:08]} Ne3 {[%emt 0:00:25]} 30. Nb3 {[%emt 0:05:12]} Nc4 {[%emt 0:00:46]} 31. Nxc5 {[%emt 0:01:25]} Rxc5 {[%emt 0:00:02]} 32. b3 {[%emt 0:00:57]} Nb6 {[%emt 0:01:36]} 33. Kc2 {[%emt 0:01:29]} Nc8 {[%emt 0:01:47]} 34. c4 {[%emt 0:00:52]} e5 {[%emt 0:02:49]} 35. Rd2 {[%emt 0:01:58]} Ke6 {[%emt 0:09:36]} 36. Rd5 {[%emt 0:04:43]} Rxd5 {[%emt 0:00:00]} 37. cxd5+ {[%emt 0:00:05]} Kd6 {[%emt 0:00:00]} 38. Be1 {[%emt 0:01:55]} Kc5 {[%emt 0:00:00]} 39. Kd3 {[%emt 0:01:18]} Nd6 {[%emt 0:00:00]} 40. Bxa5 {[%emt 0:00:00]} f5 {[%emt 0:00:00]} 41. b4+ {[%emt 0:01:43]} Kb5 {[%emt 0:00:13]} 42. exf5 {[%emt 0:00:05]} Nxf5 {[%emt 0:02:35]} 43. Ke4 {[%emt 0:01:49]} Nh6 {[%emt 0:01:01]} 44. Kxe5 {[%emt 0:00:18]} Ng4+ {[%emt 0:00:22]} 45. Ke6 {[%emt 0:00:10]} Nxh2 {[%emt 0:00:33]} 46. d6 {[%emt 0:00:05]} Nf3 {[%emt 0:00:16]} 47. d7 {[%emt 0:00:04]} Nd4+ {[%emt 0:00:27]} 48. Kd5 {[%emt 0:00:05]} Nc6 {[%emt 0:00:21]} 49. a4+ {[%emt 0:00:03]} 1-0